[Event "Championnat du monde jeunes U10"]
[Date "2024.11.23"]
[White "Nikitakis, Michail"]
[Black "Tugsbilguun, Davganamdag"]
[WhiteElo "1818"]
[BlackElo "1660"]
[Round "8.31"]
[Result "0-1"]
[TimeControl "5400+30"]

1. e4 {[%clk 1:30:56]} 1... c5 {[%clk 1:30:48]} 2. Nf3 {[%clk 1:31:25]} 2... d6
{[%clk 1:31:11]} 3. d4 {[%clk 1:31:51]} 3... cxd4 {[%clk 1:31:36]} 4. Nxd4
{[%clk 1:32:07]} 4... Nf6 {[%clk 1:32:00]} 5. Nc3 {[%clk 1:32:33]} 5... a6
{[%clk 1:32:25]} 6. f3 {[%clk 1:33:00]} 6... e5 {[%clk 1:32:50]} 7. Nb3 {[%clk
1:33:27]} 7... Be6 {[%clk 1:33:11]} 8. Be3 {[%clk 1:33:50]} 8... Nbd7 {[%clk
1:33:36]} 9. g4 {[%clk 1:33:39]} 9... b5 {[%clk 1:33:53]} 10. Qd2 {[%clk
1:31:45]} 10... b4 {[%clk 1:34:18]} 11. Na4 {[%clk 0:46:40]} 11... Rb8 {[%clk
1:32:00]} 12. g5 {[%clk 0:36:33]} 12... Nh5 {[%clk 1:32:23]} 13. Bxa6 {[%clk
0:33:41]} 13... Qc7 {[%clk 1:30:24]} 14. c4 {[%clk 0:15:32]} 14... Be7 {[%clk
1:22:12]} 15. Rg1 {[%clk 0:03:18]} 15... O-O {[%clk 1:18:03]} 16. Rc1 {[%clk
0:02:34]} 16... Nf4 {[%clk 1:16:42]} 17. h4 {[%clk 0:00:55]} 17... Qc6 {[%clk
1:15:56]} 18. Bb5 {[%clk 0:01:05]} 18... Rxb5 {[%clk 1:16:22]} 19. cxb5 {[%clk
0:00:50]} 19... Qxb5 {[%clk 1:16:51]} 20. Bxf4 {[%clk 0:00:54]} 20... exf4
{[%clk 1:17:16]} 21. Nd4 {[%clk 0:01:02]} 21... Qxa4 22. Nc6 {[%clk 0:00:46]}
22... Bd8 {[%clk 1:16:53]} 23. Nxd8 {[%clk 0:00:33]} 23... Rxd8 {[%clk 1:17:17]}
24. Qxd6 {[%clk 0:00:32]} 24... Qa7 {[%clk 1:16:51]} 25. Rf1 {[%clk 0:00:31]}
25... Qe3+ {[%clk 1:15:55]} 26. Kd1 {[%clk 0:00:41]} 26... Bxa2 {[%clk 1:15:51]}
27. Kc2 {[%clk 0:00:32]} 27... Rc8+ {[%clk 1:16:12]} 0-1

[Variant "Standard"]
[Site "Europe Echecs"]

[Event "Championnat du monde jeunes U10"]
[Date "2024.11.23"]
[White "Guntaka, Aayansh"]
[Black "Kazimzade, Mahammad"]
[WhiteElo "1798"]
[BlackElo "1687"]
[Round "8.32"]
[Result "0-1"]
[TimeControl "5400+30"]

1. e4 {[%clk 1:30:57]} 1... e5 {[%clk 1:30:50]} 2. Nf3 {[%clk 1:31:23]} 2... Nc6
{[%clk 1:31:05]} 3. Bc4 {[%clk 1:31:38]} 3... Nf6 {[%clk 1:31:12]} 4. d4 {[%clk
1:32:02]} 4... exd4 {[%clk 1:31:28]} 5. e5 {[%clk 1:32:26]} 5... d5 {[%clk
1:31:26]} 6. Bb5 {[%clk 1:32:51]} 6... Ne4 {[%clk 1:31:10]} 7. Nxd4 {[%clk
1:33:11]} 7... Bd7 {[%clk 1:31:34]} 8. Bxc6 {[%clk 1:33:26]} 8... bxc6 {[%clk
1:31:58]} 9. O-O {[%clk 1:33:30]} 9... Bc5 {[%clk 1:32:08]} 10. f3 {[%clk
1:33:40]} 10... Ng5 {[%clk 1:32:29]} 11. f4 {[%clk 1:34:06]} 11... Ne4 {[%clk
1:32:53]} 12. Be3 {[%clk 1:34:29]} 12... Bb6 {[%clk 1:33:01]} 13. Nd2 {[%clk
1:34:52]} 13... Nxd2 {[%clk 1:33:12]} 14. Qxd2 {[%clk 1:35:17]} 14... c5 {[%clk
1:33:35]} 15. Nf3 {[%clk 1:35:41]} 15... d4 {[%clk 1:34:01]} 16. Bf2 {[%clk
1:36:07]} 16... Bc6 {[%clk 1:34:11]} 17. Bh4 {[%clk 1:36:32]} 17... Qd7 {[%clk
1:34:28]} 18. Rad1 {[%clk 1:36:57]} 18... O-O {[%clk 1:31:27]} 19. f5 {[%clk
1:37:21]} 19... Qxf5 {[%clk 1:31:06]} 20. Nxd4 {[%clk 1:37:38]} 20... Qd7 {[%clk
1:16:15]} 21. Nxc6 {[%clk 1:38:01]} 21... Qxc6 {[%clk 1:16:34]} 22. Qd7 {[%clk
1:38:24]} 22... Qe4 {[%clk 1:14:20]} 23. Be7 {[%clk 1:38:18]} 23... Rfe8 {[%clk
1:14:36]} 24. Rxf7 {[%clk 1:38:08]} 24... Qxe5 {[%clk 1:12:49]} 25. Rdf1 {[%clk
1:37:23]} 25... Qd4+ {[%clk 1:11:06]} 26. Qxd4 {[%clk 1:37:29]} 26... cxd4
{[%clk 1:11:32]} 27. Kh1 {[%clk 1:35:59]} 27... h6 {[%clk 1:08:48]} 28. g4
{[%clk 1:24:14]} 28... c5 {[%clk 1:06:52]} 29. a4 {[%clk 1:11:14]} 29... c4
{[%clk 1:05:46]} 30. Ba3 {[%clk 1:01:33]} 30... d3 {[%clk 1:03:19]} 31. cxd3
{[%clk 0:53:50]} 31... cxd3 {[%clk 1:03:34]} 32. Rd7 {[%clk 0:49:28]} 32... Rad8
{[%clk 1:03:27]} 33. Rxd8 {[%clk 0:47:05]} 33... Rxd8 {[%clk 1:03:34]} 34. Rd1
{[%clk 0:47:05]} 34... Rd4 {[%clk 1:02:17]} 35. h3 {[%clk 0:46:51]} 35... Kf7
{[%clk 0:58:36]} 36. b4 {[%clk 0:45:44]} 36... d2 {[%clk 0:57:46]} 37. Kg2
{[%clk 0:42:24]} 37... Rd3 {[%clk 0:57:42]} 38. Bb2 {[%clk 0:40:48]} 38... Be3
{[%clk 0:57:27]} 39. Be5 {[%clk 0:36:21]} 39... Bg5 {[%clk 0:56:02]} 40. Bg3
{[%clk 0:34:08]} 40... Ke6 {[%clk 0:54:44]} 41. b5 {[%clk 0:33:57]} 41... Kd5
{[%clk 0:54:46]} 42. Bf2 {[%clk 0:33:38]} 42... Kc4 {[%clk 0:53:31]} 43. h4
{[%clk 0:30:14]} 43... Bf4 {[%clk 0:53:26]} 44. Kf1 {[%clk 0:26:06]} 44... Kb3
{[%clk 0:52:03]} 45. Ke2 {[%clk 0:26:17]} 45... Kc2 {[%clk 0:52:19]} 46. a5
{[%clk 0:26:30]} 46... Rd5 {[%clk 0:51:56]} 47. Be3 {[%clk 0:26:13]} 47... Bxe3
{[%clk 0:52:22]} 48. b6 {[%clk 0:26:29]} 48... axb6 {[%clk 0:52:46]} 49. a6 b5
{[%clk 0:52:53]} 50. a7 {[%clk 0:27:10]} 50... Bxa7 {[%clk 0:53:14]} 51. Rxd2+
{[%clk 0:27:28]} 51... Rxd2+ {[%clk 0:53:40]} 52. Kf3 {[%clk 0:27:50]} 52... Kd3
{[%clk 0:54:05]} 53. g5 {[%clk 0:28:15]} 53... hxg5 {[%clk 0:54:26]} 54. hxg5
{[%clk 0:28:39]} 54... g6 {[%clk 0:54:52]} 55. Kf4 {[%clk 0:29:02]} 55... Bd4
{[%clk 0:55:18]} 56. Kf3 {[%clk 0:29:23]} 56... Rf2+ {[%clk 0:55:43]} 57. Kg3
{[%clk 0:29:50]} 57... Ke4 {[%clk 0:56:06]} 58. Kh4 {[%clk 0:30:12]} 58... Kf3
{[%clk 0:56:22]} 59. Kh3 {[%clk 0:30:39]} 59... Be5 {[%clk 0:56:45]} 60. Kh4
{[%clk 0:31:07]} 60... Rh2# 0-1

[Variant "Standard"]
[Site "Europe Echecs"]

[Event "Championnat du monde jeunes U10"]
[Date "2024.11.23"]
[White "Megagiannis, Maximos"]
[Black "Akramov, Khusan"]
[WhiteElo "1682"]
[BlackElo "1782"]
[Round "8.33"]
[Result "0-1"]
[TimeControl "5400+30"]

1. e4 {[%clk 1:30:55]} 1... c6 {[%clk 1:30:47]} 2. Nf3 {[%clk 1:28:35]} 2... d5
{[%clk 1:31:09]} 3. Nc3 {[%clk 1:28:58]} 3... dxe4 {[%clk 1:31:32]} 4. Nxe4
{[%clk 1:29:21]} 4... Nf6 {[%clk 1:31:58]} 5. Qe2 {[%clk 1:29:35]} 5... Nxe4
{[%clk 1:32:19]} 6. Qxe4 {[%clk 1:29:56]} 6... Nd7 {[%clk 1:32:42]} 7. Bc4
{[%clk 1:23:05]} 7... Nf6 {[%clk 1:31:56]} 8. Ne5 {[%clk 1:19:18]} 8... e6
{[%clk 1:32:17]} 9. Qe2 {[%clk 1:19:27]} 9... Bd6 {[%clk 1:29:03]} 10. d4 {[%clk
1:18:26]} 10... O-O {[%clk 1:28:16]} 11. O-O {[%clk 1:16:29]} 11... b5 {[%clk
1:24:39]} 12. Nxc6 {[%clk 1:02:39]} 12... Qc7 {[%clk 1:24:21]} 13. Bxb5 {[%clk
1:02:23]} 13... a6 {[%clk 1:24:44]} 14. Ba4 {[%clk 1:01:57]} 14... Bd7 {[%clk
1:25:06]} 15. Qc4 {[%clk 0:59:44]} 15... Rfc8 {[%clk 1:25:01]} 16. Ne5 {[%clk
0:52:24]} 16... Bxe5 {[%clk 1:25:21]} 17. Qxc7 {[%clk 0:51:50]} 17... Bxc7
{[%clk 1:25:42]} 18. Bxd7 {[%clk 0:51:29]} 18... Nxd7 {[%clk 1:26:05]} 19. c3
{[%clk 0:51:54]} 19... Bd6 {[%clk 1:25:41]} 20. Bd2 {[%clk 0:51:05]} 20... Nf6
{[%clk 1:25:41]} 21. f3 {[%clk 0:51:01]} 21... Nd5 {[%clk 1:25:47]} 22. Kf2
{[%clk 0:50:40]} 22... Rab8 {[%clk 1:26:00]} 23. Rab1 {[%clk 0:51:04]} 23... a5
{[%clk 1:26:11]} 24. a4 {[%clk 0:50:53]} 24... Rb3 {[%clk 1:26:25]} 0-1

[Variant "Standard"]
[Site "Europe Echecs"]

[Event "Championnat du monde jeunes U10"]
[Date "2024.11.23"]
[White "Todmunkh, Turbat"]
[Black "Gim, Hajin"]
[WhiteElo "1773"]
[BlackElo "1603"]
[Round "8.34"]
[Result "1-0"]
[TimeControl "5400+30"]

1. e4 {[%clk 1:30:56]} 1... c5 {[%clk 1:30:55]} 2. Nf3 {[%clk 1:31:05]} 2... Nc6
{[%clk 1:31:20]} 3. Bb5 {[%clk 1:31:18]} 3... g6 {[%clk 1:31:41]} 4. Bxc6 {[%clk
1:31:33]} 4... bxc6 {[%clk 1:32:04]} 5. O-O {[%clk 1:31:59]} 5... Bg7 {[%clk
1:32:25]} 6. d3 {[%clk 1:32:11]} 6... Nf6 {[%clk 1:32:30]} 7. Nc3 {[%clk
1:32:23]} 7... O-O {[%clk 1:32:50]} 8. h3 {[%clk 1:32:48]} 8... d5 {[%clk
1:33:10]} 9. Re1 {[%clk 1:32:51]} 9... Ba6 {[%clk 1:33:20]} 10. e5 {[%clk
1:31:51]} 10... Nd7 {[%clk 1:33:34]} 11. e6 {[%clk 1:32:15]} 11... Nf6 {[%clk
1:33:08]} 12. exf7+ {[%clk 1:32:14]} 12... Rxf7 {[%clk 1:33:31]} 13. Ng5 {[%clk
1:32:40]} 13... c4 {[%clk 1:32:16]} 14. Nxf7 {[%clk 1:32:21]} 14... Kxf7 {[%clk
1:32:35]} 15. d4 {[%clk 1:32:21]} 15... Kg8 {[%clk 1:32:37]} 16. Bg5 {[%clk
1:32:40]} 16... Qd6 {[%clk 1:32:49]} 17. Qd2 {[%clk 1:32:54]} 17... Rf8 {[%clk
1:33:04]} 18. Re2 {[%clk 1:32:30]} 18... Rb8 {[%clk 1:32:45]} 19. Rae1 {[%clk
1:32:05]} 19... Rxb2 {[%clk 1:32:55]} 20. Rxe7 {[%clk 1:32:24]} 20... Qb4 {[%clk
1:32:54]} 21. Bh6 {[%clk 1:32:15]} 21... Bh8 {[%clk 1:31:38]} 22. Qe3 {[%clk
1:29:55]} 22... Ne4 {[%clk 1:30:40]} 23. Re8+ {[%clk 1:30:00]} 23... Kf7 {[%clk
1:30:58]} 24. Rf8+ {[%clk 1:30:19]} 24... Qxf8 {[%clk 1:30:55]} 25. Bxf8 {[%clk
1:30:40]} 25... Kxf8 {[%clk 1:31:13]} 26. Nxe4 dxe4 {[%clk 1:31:28]} 27. Qf4+
{[%clk 1:31:17]} 27... Kg7 {[%clk 1:31:29]} 28. Rxe4 {[%clk 1:31:04]} 28... Rb1+
{[%clk 1:31:34]} 29. Kh2 {[%clk 1:30:54]} 29... Rb5 {[%clk 1:30:54]} 30. Re7+
{[%clk 1:30:07]} 30... Kg8 {[%clk 1:30:48]} 31. Qf7# 1-0

[Variant "Standard"]
[Site "Europe Echecs"]

[Event "Championnat du monde jeunes U10"]
[Date "2024.11.23"]
[White "Bulat, Mansur"]
[Black "Katta, Sriansh"]
[WhiteElo "1610"]
[BlackElo "1766"]
[Round "8.35"]
[Result "1/2-1/2"]
[TimeControl "5400+30"]

1. e4 {[%clk 1:30:50]} 1... c5 {[%clk 1:30:54]} 2. Nf3 {[%clk 1:30:49]} 2... Nc6
{[%clk 1:31:15]} 3. d4 {[%clk 1:30:19]} 3... cxd4 {[%clk 1:31:33]} 4. Nxd4
{[%clk 1:30:09]} 4... e5 {[%clk 1:31:58]} 5. Nb5 {[%clk 1:30:09]} 5... d6 {[%clk
1:32:19]} 6. c4 {[%clk 1:30:06]} 6... Be6 {[%clk 1:32:44]} 7. Bd3 {[%clk
1:29:29]} 7... g6 {[%clk 1:33:08]} 8. N5c3 {[%clk 1:29:04]} 8... Bg7 {[%clk
1:33:19]} 9. O-O {[%clk 1:28:44]} 9... Nf6 {[%clk 1:33:32]} 10. Nd5 {[%clk
1:28:09]} 10... Rc8 {[%clk 1:33:15]} 11. Nbc3 {[%clk 1:26:37]} 11... a6 {[%clk
1:28:58]} 12. Be3 {[%clk 1:21:21]} 12... Nd4 {[%clk 1:28:07]} 13. Nxf6+ {[%clk
1:17:35]} 13... Bxf6 {[%clk 1:25:06]} 14. Nd5 {[%clk 1:15:49]} 14... Bg7 {[%clk
1:23:46]} 15. Qd2 {[%clk 1:09:40]} 15... O-O {[%clk 1:21:11]} 16. Rac1 {[%clk
1:03:26]} 16... Bxd5 {[%clk 1:08:36]} 17. cxd5 {[%clk 1:03:21]} 17... Qd7 {[%clk
1:07:35]} 18. h3 {[%clk 0:55:13]} 18... h5 {[%clk 0:57:12]} 19. Rc3 {[%clk
0:47:29]} 19... Nb5 {[%clk 0:44:11]} 20. Bxb5 {[%clk 0:42:58]} 20... Qxb5 {[%clk
0:44:22]} 21. Rfc1 {[%clk 0:42:22]} 21... Rxc3 {[%clk 0:37:57]} 22. Rxc3 {[%clk
0:42:41]} 22... Qa4 {[%clk 0:35:53]} 23. Qc2 {[%clk 0:41:48]} 23... Qa5 {[%clk
0:31:37]} 24. b3 {[%clk 0:37:00]} 24... f5 {[%clk 0:23:21]} 25. f3 {[%clk
0:32:44]} 25... fxe4 {[%clk 0:19:08]} 26. fxe4 {[%clk 0:32:23]} 26... Qd8 {[%clk
0:14:54]} 27. Rc7 {[%clk 0:29:32]} 27... Qf6 {[%clk 0:11:38]} 28. Rc8 {[%clk
0:26:16]} 28... Qf1+ {[%clk 0:10:00]} 29. Kh2 {[%clk 0:25:41]} 29... Rxc8 {[%clk
0:09:28]} 30. Qxc8+ {[%clk 0:26:06]} 30... Kh7 {[%clk 0:09:55]} 31. Qxb7 {[%clk
0:24:17]} 31... Qd3 {[%clk 0:10:14]} 32. Bf2 {[%clk 0:23:04]} 32... Qxe4 {[%clk
0:09:58]} 33. a4 {[%clk 0:22:32]} 33... h4 {[%clk 0:07:48]} 34. Qxa6 {[%clk
0:21:14]} 34... Qf4+ {[%clk 0:06:28]} 35. Kg1 {[%clk 0:21:37]} 35... e4 {[%clk
0:06:15]} 36. Qc4 {[%clk 0:19:09]} 36... Be5 {[%clk 0:05:17]} 37. Kf1 {[%clk
0:18:30]} 37... Qf5 {[%clk 0:03:16]} 38. Ke2 {[%clk 0:17:06]} 38... Qh5+ {[%clk
0:02:32]} 39. Ke1 {[%clk 0:17:29]} 39... Qf5 {[%clk 0:01:30]} 40. Qc7+ {[%clk
0:16:42]} 40... Kh6 {[%clk 0:01:10]} 41. Qe7 {[%clk 0:16:11]} 41... Bc3+ {[%clk
0:00:51]} 42. Kf1 {[%clk 0:15:10]} 42... Qxd5 {[%clk 0:00:56]} 43. Qxh4+ {[%clk
0:14:31]} 43... Kg7 {[%clk 0:01:25]} 44. Qe7+ {[%clk 0:14:50]} 44... Kh6 {[%clk
0:01:29]} 45. Be3+ {[%clk 0:11:12]} 45... g5 {[%clk 0:01:52]} 46. Kf2 {[%clk
0:10:39]} 1/2-1/2

[Variant "Standard"]
[Site "Europe Echecs"]

[Event "Championnat du monde jeunes U10"]
[Date "2024.11.23"]
[White "Vedrickas, Vytis"]
[Black "Ten Dam, Bram"]
[WhiteElo "1642"]
[BlackElo "2012"]
[Round "8.36"]
[Result "0-1"]
[TimeControl "5400+30"]

1. e4 {[%clk 1:30:23]} 1... c5 {[%clk 1:30:56]} 2. Nf3 {[%clk 1:30:42]} 2... d6
{[%clk 1:31:21]} 3. d4 {[%clk 1:30:54]} 3... cxd4 {[%clk 1:31:46]} 4. Nxd4
{[%clk 1:31:10]} 4... Nf6 {[%clk 1:32:04]} 5. Nc3 {[%clk 1:30:58]} 5... g6
{[%clk 1:32:25]} 6. Be3 {[%clk 1:31:15]} 6... Bg7 {[%clk 1:32:49]} 7. f3 {[%clk
1:30:11]} 7... a6 {[%clk 1:33:08]} 8. Qd2 {[%clk 1:29:30]} 8... h5 {[%clk
1:33:14]} 9. O-O-O {[%clk 1:29:03]} 9... b5 {[%clk 1:32:35]} 10. Be2 {[%clk
1:15:35]} 10... Bb7 {[%clk 1:31:34]} 11. Nd5 {[%clk 1:11:56]} 11... Nbd7 {[%clk
1:27:00]} 12. Kb1 {[%clk 1:01:06]} 12... Rc8 {[%clk 1:24:46]} 13. Nxf6+ {[%clk
0:58:59]} 13... Bxf6 {[%clk 1:18:39]} 14. Bg5 {[%clk 0:56:22]} 14... Bg7 {[%clk
1:16:47]} 15. Qe3 {[%clk 0:53:07]} 15... Qc7 {[%clk 1:10:44]} 16. Bd3 {[%clk
0:48:29]} 16... Nb6 {[%clk 1:07:49]} 17. Rhf1 {[%clk 0:41:26]} 17... Na4 {[%clk
0:57:56]} 18. f4 {[%clk 0:37:20]} 18... Nxb2 {[%clk 0:53:21]} 19. Bxb5+ {[%clk
0:37:15]} 19... axb5 {[%clk 0:53:24]} 20. Kxb2 {[%clk 0:37:28]} 20... Qxc2+
{[%clk 0:52:51]} 21. Ka1 {[%clk 0:35:00]} 21... Ra8 {[%clk 0:52:21]} 22. a3
{[%clk 0:34:58]} 22... Bxe4 {[%clk 0:44:40]} 23. Rd2 {[%clk 0:33:12]} 23...
Rxa3+ {[%clk 0:44:23]} 24. Qxa3 {[%clk 0:33:21]} 24... Qxd2 {[%clk 0:44:47]} 25.
Rb1 Bxd4+ {[%clk 0:44:54]} 0-1

[Variant "Standard"]
[Site "Europe Echecs"]

[Event "Championnat du monde jeunes U10"]
[Date "2024.11.23"]
[White "Yao, Lucas Mason Pin Qian"]
[Black "Deepak Ambattu, Rithvik"]
[WhiteElo "1687"]
[BlackElo "2063"]
[Round "8.37"]
[Result "0-1"]
[TimeControl "5400+30"]

1. e4 {[%clk 1:30:56]} 1... c5 {[%clk 1:30:53]} 2. Nf3 {[%clk 1:31:14]} 2... d6
{[%clk 1:31:11]} 3. d4 {[%clk 1:31:14]} 3... cxd4 {[%clk 1:31:32]} 4. Nxd4
{[%clk 1:31:30]} 4... Nf6 {[%clk 1:31:56]} 5. Bd3 {[%clk 1:31:22]} 5... e5
{[%clk 1:27:14]} 6. Nf3 {[%clk 1:26:22]} 6... Be7 {[%clk 1:25:06]} 7. c4 {[%clk
1:24:57]} 7... O-O {[%clk 1:20:14]} 8. O-O {[%clk 1:23:24]} 8... Nc6 {[%clk
1:14:55]} 9. h3 {[%clk 1:21:30]} 9... Be6 {[%clk 1:08:59]} 10. Nc3 {[%clk
1:20:33]} 10... Rc8 {[%clk 1:08:02]} 11. b3 {[%clk 1:18:32]} 11... Nd7 {[%clk
1:04:44]} 12. Be3 {[%clk 1:16:23]} 12... a6 {[%clk 0:59:05]} 13. Rc1 {[%clk
1:14:58]} 13... Nc5 {[%clk 0:55:33]} 14. Bb1 {[%clk 1:10:55]} 14... g6 {[%clk
0:46:35]} 15. g4 {[%clk 1:00:34]} 15... h5 {[%clk 0:42:24]} 16. gxh5 {[%clk
0:53:36]} 16... Bxh3 {[%clk 0:41:37]} 17. Re1 {[%clk 0:52:33]} 17... gxh5 {[%clk
0:39:37]} 18. Nh2 {[%clk 0:52:37]} 18... Kg7 {[%clk 0:33:48]} 19. Kh1 {[%clk
0:45:55]} 19... Rh8 {[%clk 0:32:03]} 20. Rg1+ {[%clk 0:45:30]} 20... Kf8 {[%clk
0:32:28]} 21. Nd5 {[%clk 0:42:49]} 21... Bd7 {[%clk 0:24:13]} 22. Rg2 {[%clk
0:40:15]} 22... Ke8 {[%clk 0:15:15]} 23. Qg1 {[%clk 0:37:14]} 23... Be6 {[%clk
0:13:52]} 24. Rd1 {[%clk 0:33:38]} 24... b6 {[%clk 0:13:09]} 25. b4 {[%clk
0:27:33]} 25... Nd7 {[%clk 0:11:30]} 26. f3 {[%clk 0:27:04]} 26... Nd4 {[%clk
0:08:56]} 27. Bxd4 {[%clk 0:26:44]} 27... exd4 {[%clk 0:09:25]} 28. Qxd4 {[%clk
0:26:50]} 28... Bf6 {[%clk 0:08:52]} 29. Nxf6+ {[%clk 0:26:39]} 29... Qxf6
{[%clk 0:08:53]} 30. Qxd6 {[%clk 0:25:42]} 30... Rxc4 {[%clk 0:08:10]} 31. f4
{[%clk 0:25:02]} 31... Bg4 {[%clk 0:07:19]} 32. Qxf6 {[%clk 0:23:00]} 32... Nxf6
{[%clk 0:07:47]} 33. Re1 {[%clk 0:23:09]} 33... Rxb4 {[%clk 0:07:33]} 34. Rd2
{[%clk 0:23:19]} 34... Ke7 {[%clk 0:06:56]} 35. f5 {[%clk 0:22:57]} 35... Re8
{[%clk 0:02:24]} 36. e5 {[%clk 0:22:17]} 36... Kf8 {[%clk 0:02:29]} 37. Nxg4
{[%clk 0:21:23]} 37... Nxg4 {[%clk 0:02:09]} 38. e6 {[%clk 0:21:07]} 38... Nf6
{[%clk 0:01:29]} 39. Rde2 {[%clk 0:21:02]} 39... fxe6 {[%clk 0:01:25]} 40. fxe6
{[%clk 0:21:19]} 40... Ke7 {[%clk 0:01:27]} 41. Rg2 {[%clk 0:21:03]} 41... Rh4+
{[%clk 0:00:40]} 42. Kg1 {[%clk 0:21:23]} 42... Rg4 {[%clk 0:00:53]} 43. Bf5
{[%clk 0:21:24]} 43... Rxg2+ {[%clk 0:01:08]} 44. Kxg2 {[%clk 0:21:48]} 44...
Rc8 {[%clk 0:01:08]} 45. Bd3 {[%clk 0:20:56]} 45... b5 {[%clk 0:01:11]} 46. Bf5
{[%clk 0:20:50]} 46... Rc5 {[%clk 0:01:33]} 47. Bd3 {[%clk 0:20:53]} 47... Rd5
{[%clk 0:01:32]} 48. Bb1 {[%clk 0:21:06]} 48... Rd6 {[%clk 0:01:29]} 49. Kf3
{[%clk 0:21:12]} 49... Rxe6 {[%clk 0:01:11]} 50. Rc1 {[%clk 0:21:31]} 50... Kd6
{[%clk 0:01:08]} 51. Kf4 {[%clk 0:20:48]} 51... Nd5+ {[%clk 0:01:31]} 52. Kg5
{[%clk 0:21:00]} 52... Re5+ {[%clk 0:01:44]} 53. Kh4 {[%clk 0:21:13]} 53... a5
{[%clk 0:01:41]} 54. Bg6 {[%clk 0:20:53]} 54... Nf4 {[%clk 0:01:35]} 55. Bb1
{[%clk 0:21:05]} 55... b4 {[%clk 0:01:24]} 56. Rc4 {[%clk 0:21:13]} 56... Ng2+
{[%clk 0:01:38]} 57. Kg3 {[%clk 0:21:26]} 57... Ne3 {[%clk 0:01:55]} 58. Rc1
{[%clk 0:21:21]} 58... a4 {[%clk 0:02:04]} 59. Kf3 {[%clk 0:21:41]} 59... Nd5
{[%clk 0:02:17]} 60. Rc4 {[%clk 0:21:25]} 60... Re3+ {[%clk 0:00:38]} 61. Kf2
{[%clk 0:21:08]} 61... Rc3 {[%clk 0:00:49]} 62. Rh4 {[%clk 0:21:23]} 62... Rc1
{[%clk 0:01:10]} 63. Bd3 {[%clk 0:21:40]} 63... Ra1 {[%clk 0:01:30]} 64. Bc4
{[%clk 0:21:41]} 64... Kc5 {[%clk 0:01:05]} 65. Bxd5 {[%clk 0:21:58]} 65... Kxd5
{[%clk 0:01:33]} 66. Rxb4 {[%clk 0:22:13]} 66... Rxa2+ {[%clk 0:01:45]} 67. Kg3
{[%clk 0:22:38]} 67... Kc5 {[%clk 0:01:53]} 68. Rh4 {[%clk 0:22:53]} 68... Kb5
{[%clk 0:01:46]} 69. Kf3 {[%clk 0:22:32]} 69... Rc2 {[%clk 0:00:49]} 70. Rxh5+
{[%clk 0:22:53]} 70... Kb4 {[%clk 0:01:00]} 71. Rh8 {[%clk 0:22:22]} 71... a3
{[%clk 0:01:15]} 72. Rb8+ {[%clk 0:22:43]} 72... Kc3 {[%clk 0:01:25]} 73. Rc8+
{[%clk 0:22:20]} 73... Kb2 {[%clk 0:01:50]} 74. Rb8+ {[%clk 0:22:29]} 74... Kc1
{[%clk 0:02:10]} 75. Ke3 {[%clk 0:22:43]} 75... a2 {[%clk 0:02:36]} 76. Ra8
{[%clk 0:23:05]} 76... Kb1 {[%clk 0:03:01]} 77. Rb8+ {[%clk 0:23:26]} 77... Rb2
{[%clk 0:03:27]} 78. Ra8 {[%clk 0:23:36]} 78... a1=Q {[%clk 0:03:53]} 79. Rxa1+
{[%clk 0:23:58]} 79... Kxa1 {[%clk 0:04:21]} 80. Kd3 {[%clk 0:24:20]} 80... Kb1
{[%clk 0:04:41]} 81. Kc3 {[%clk 0:24:40]} 81... Kc1 {[%clk 0:05:03]} 82. Kd3
{[%clk 0:25:01]} 82... Kd1 {[%clk 0:05:22]} 83. Kc3 {[%clk 0:25:24]} 83... Rb7
{[%clk 0:05:44]} 84. Kd3 {[%clk 0:25:47]} 84... Rb3+ {[%clk 0:06:09]} 85. Kd4
{[%clk 0:26:05]} 85... Kd2 {[%clk 0:06:34]} 86. Kc4 {[%clk 0:26:17]} 86... Rb7
{[%clk 0:07:00]} 87. Kd4 {[%clk 0:26:30]} 87... Rb4+ {[%clk 0:07:15]} 88. Kc5
{[%clk 0:26:48]} 88... Rh4 {[%clk 0:07:32]} 89. Kd5 {[%clk 0:27:10]} 89... Ke3
{[%clk 0:07:59]} 90. Kc5 {[%clk 0:27:32]} 90... Kd3 {[%clk 0:08:26]} 91. Kb5
{[%clk 0:27:51]} 91... Kc3 {[%clk 0:08:54]} 92. Kc5 {[%clk 0:28:14]} 92... Rh5+
{[%clk 0:09:13]} 93. Kd6 {[%clk 0:28:28]} 93... Ra5 {[%clk 0:09:35]} 94. Ke6
{[%clk 0:28:42]} 94... Kd4 {[%clk 0:10:00]} 95. Kf6 {[%clk 0:28:59]} 95... Ke4
{[%clk 0:10:27]} 96. Kg6 {[%clk 0:29:18]} 96... Rf5 {[%clk 0:10:51]} 97. Kg7
{[%clk 0:29:41]} 97... Kf4 {[%clk 0:11:16]} 98. Kg6 {[%clk 0:29:57]} 98... Kg4
{[%clk 0:11:43]} 99. Kg7 {[%clk 0:30:14]} 99... Kg5 {[%clk 0:12:09]} 100. Kh7
{[%clk 0:30:29]} 100... Rf7+ {[%clk 0:12:32]} 101. Kh8 {[%clk 0:30:52]} 101...
Kh6 {[%clk 0:12:58]} 102. Kg8 {[%clk 0:30:59]} 102... Kg6 {[%clk 0:13:26]} 103.
Kh8 {[%clk 0:31:18]} 103... Rf8# {[%clk 0:13:49]} 0-1

[Variant "Standard"]
[Site "Europe Echecs"]